Cogmind - Beta 15 @@@ ROGUE MODE // 2025.06.19 @ 15:28:50 Player: roc Result: Self-destructed Performance ------------- Evolutions (4) 2000 Regions Visited (7) 1400 Robots Destroyed (72) 360 Value Destroyed (1849) 1849 Prototype IDs (15) 300 Alien Tech Used (0) 0 Bonus (3034) 3034 TOTAL SCORE: 8943 Bonus ------- High Alert Combat Kills 152 Follower Combat Kills 614 Delivered SUBCON Basin 2000 Registered with UFD 300 Friendly Fire -32 Cogmind --------- Core Integrity 209/850 Matter 290/300 Energy 80/100 System Corruption 7% Temperature Cool (0) Movement Core (500) Ox9 Location -6/Factory Parts ------- > --- POWER (2) -------- (None) > --- PROPULSION (5) --- Heavy Treads > --- UTILITY (6) ------ Large Storage Unit Experimental Hacking Suite System Shield System Shield Stealth Drone Bay (2/2) > --- WEAPON (2) ------- (None) > --- INVENTORY (15) --- Advanced Power Amplifier Structural Scanner Subdweller Optics Transmission Jammer Improved Light Armor Plating Tech Extrapolator Improved Trap Extractor (0/6) Proton Cannon Proton Cannon Heavy Rocket Launcher Greatsword Peak State ------------ > --- POWER ------------ Enhanced Nuclear Core Fusion Compressor > --- PROPULSION ------- Cesium-ion Thruster Xenon Bombardment Thruster Xenon Bombardment Thruster Nuclear Pulse Thruster Cooled Cesium-ion Thruster > --- UTILITY ---------- Medium Storage Unit Weight Redist. System Active Sensor Suite Transport Network Coupler > --- WEAPON ----------- Improved Datajack Shock Maul > --- INVENTORY -------- Structural Scanner Subdweller Optics Transmission Jammer System Shield Authchip [Propulsion] Tech Extrapolator Improved Trap Extractor Heavy Rocket Launcher Plasma Cutter Heavy Pick [Rating: 75] Favorites ----------- Power Subdweller Power Source Engine Subdweller Power Source Power Core Enhanced Nuclear Core Propulsion Light Treads Treads Light Treads Wheel Armored Wheel Flight Unit VTOL Module Utility Subdweller Optics Device Subdweller Optics Storage Huge Storage Unit Processor Transport Network Coupler Hackware System Shield Protection Core Shielding Weapon Subdweller Machine Gun Energy Gun Beam Rifle Energy Cannon Proton Cannon Ballistic Gun Subdweller Machine Gun Ballistic Cannon Light Cannon Launcher Grenade Launcher Special Weapon Mining Laser Impact Weapon Shock Maul Slashing Weapon Greatsword Piercing Weapon Heavy Pick Special Melee Weapon Improved Datajack Build | -11 -10 -10 -9 -9 -6 -6 -6 ------- Run | Yrd Mat Sub Rec Scr Fac Was Fac Slots Evolved 8 | . . . . . 8 . . Power 1 | . . . . . 1 . . Propulsion 3 | . . . . . 3 . . Utility 4 | . . . . . 4 . . Weapon . | . . . . . . . . Parts Attached 76 | 7 10 12 4 7 24 5 7 Power 12 | 1 . 3 . 2 5 . 1 Engine 8 | 1 . 3 . 2 1 . 1 Core 4 | . . . . . 4 . . Reactor . | . . . . . . . . Propulsion 25 | 3 2 4 2 2 10 2 . Treads 9 | 1 2 2 1 1 . 2 . Leg . | . . . . . . . . Wheel 5 | 2 . 2 1 . . . . Hover . | . . . . . . . . Flight 11 | . . . . 1 10 . . Utility 18 | 1 2 1 1 1 7 2 3 Device 5 | . . 1 . . 3 1 . Storage 6 | 1 1 . 1 1 1 . 1 Processor 2 | . . . . . 2 . . Hackware 3 | . . . . . 1 . 2 Protection 2 | . 1 . . . . 1 . Artifact . | . . . . . . . . Weapon 21 | 2 6 4 1 2 2 1 3 Energy Gun 3 | . 2 . 1 . . . . Energy Cannon 2 | . . . . . . 1 1 Ballistic Gun 4 | 2 1 1 . . . . . Ballistic Cannon 1 | . 1 . . . . . . Launcher 5 | . 1 3 . . . . 1 Special Weapon 1 | . 1 . . . . . . Impact Weapon 1 | . . . . . 1 . . Slashing Weapon 1 | . . . . . . . 1 Piercing Weapon 2 | . . . . 2 . . . Special Melee Weapon 1 | . . . . . 1 . . Unidentified Prototypes 7 | . . . . . 4 2 1 Corrupted Parts 1 | . . . . . . . 1 System Corruption 4 | . . . . . . . 4 Parts Lost 17 | . 3 3 . . 9 . 2 Power 4 | . . 2 . . 1 . 1 Propulsion 8 | . 1 1 . . 5 . 1 Utility 2 | . . . . . 2 . . Weapon 3 | . 2 . . . 1 . . Highest Loss Streak 5 | . 2 1 . . 5 . 1 To Critical Strikes 1 | . . . . . 1 . . Average Backups 12 | 1 8 8 7 23 9 5 7 Power . | . 1 . . 1 . . . Propulsion 2 | 1 2 . 2 3 . . . Utility 6 | . 3 4 2 12 6 4 5 Weapon 2 | . 2 2 2 4 1 1 1 Tool/Special . | . . . . . . . . Unused Backups 47 | . 1 9 2 16 11 . 8 Power 2 | . . . . 1 1 . . Propulsion 1 | . . . 1 . . . . Utility 31 | . 1 8 1 7 8 . 6 Weapon 10 | . . 1 . 6 1 . 2 Tool/Special 3 | . . . . 2 1 . . Average Slot Usage (%) 84 | . 97 98 96 81 77 19 53 Engine 11 | . 14 12 14 14 1 . 2 Treads 13 | . 27 22 15 9 . 3 10 Wheel 8 | . . 5 12 14 . . . Flight 2 | . . . . . 31 . . Device 9 | . . 6 14 9 16 5 9 Storage 12 | . 14 14 14 14 5 . 3 Hackware 1 | . . . . . . 6 12 Protection 3 | . 11 7 . . . 3 5 Energy Gun 2 | . 4 . 6 2 . . . Ballistic Gun 9 | . 18 6 12 10 . . . Launcher 4 | . . 21 6 . . . 2 Piercing Weapon 2 | . . . . 7 4 . . Peak Build Rating 75 | 6 8 30 31 27 75 51 69 Average Rating 25 | 4 7 17 25 18 65 16 58 On Entrance 21 | . 6 8 30 16 27 32 51 Naked Turns . | . . . . . . . . Heaviest Build 94 | 13 30 34 94 94 32 15 61 Greatest Support 70 | 20 40 40 40 12 35 70 70 Greatest Overweight (x) 7 | . . 1 7 7 5 2 . Average Overweight (x) 2 | . . . 5 5 . . . Largest Inventory Capacity 25 | 8 15 15 25 25 25 5 15 Average Capacity 17 | 7 9 15 21 24 10 5 10 Most Carried 25 | 4 15 15 25 25 25 5 13 Average Carried 16 | 1 8 14 18 24 9 4 7 Final Capacity 25 | 8 15 15 25 25 5 5 15 Final Carried 25 | 4 15 15 17 25 5 5 12 Class Distribution -------------------- 69% | Mutant 14% | Scavenger-Mutant 7% | Hacker-Mutant 6% | Scout Dominant Class ---------------- Mutant | -10/Materials Mutant | -10/Subcaves Mutant | -9/Recycling Mutant | -9/Scraptown Scout | -6/Factory Mutant | -6/Waste Hacker-Mutant | -6/Factory Resources | -11 -10 -10 -9 -9 -6 -6 -6 ----------- Run | Yrd Mat Sub Rec Scr Fac Was Fac Matter Collected 1961 | 215 559 342 192 40 398 71 144 Remotely . | . . . . . . . . Salvage Created 2719 | . 743 214 365 . 664 . 733 Parts 178 | . 50 13 23 . 32 . 60 Haulers Intercepted 5 | . 1 . . . 3 . 1 Recyclers Shooed 1 | . 1 . . . . . . Parts Field Recycled . | . . . . . . . . Retrieved Matter . | . . . . . . . . Parts Self-Destructed 12 | . . 12 . . . . . Prevented . | . . . . . . . . Kills | -11 -10 -10 -9 -9 -6 -6 -6 ------- Run | Yrd Mat Sub Rec Scr Fac Was Fac Combat Hostiles Destroyed 41 | . 22 6 3 . 3 . 7 Melee 7 | . . . . . 3 . 4 Guns 15 | . 11 1 3 . . . . Cannons 5 | . 4 . . . . . 1 AOE 14 | . 7 5 . . . . 2 Classes Destroyed 14 | . 6 2 1 . 2 . 3 Worker 2 | . . . . . . . 2 Builder 10 | . . . . . 1 . 9 Hauler 5 | . 1 . . . 3 . 1 Recycler 6 | . 1 . 3 . 1 . 1 Mechanic 1 | . . . . . . . 1 Operator 3 | . 1 . . . 2 . . Turret 1 | . . 1 . . . . . Watcher 3 | . 2 . . . 1 . . Swarmer 12 | . 9 . . . . . 3 Grunt 14 | . 13 . . . . . 1 Sentry 5 | . . . 3 . . . 2 Hunter 1 | . . . . . . . 1 Programmer 3 | . . . . . 3 . . Subdweller 6 | . . 6 . . . . . Best Kill Streak 8 | . 4 3 4 . 3 . 8 Combat Bots Only 4 | . 4 3 1 . 2 . 2 Max Kills in Single Turn 8 | . 3 1 2 . 1 . 8 Gunslinging . | . . . . . . . . Exploded 3 | . 3 1 . . . . 2 Melee 1 | . . . . . 1 . 1 Uniques/NPCs Destroyed . | . . . . . . . . Combat | -11 -10 -10 -9 -9 -6 -6 -6 -------- Run | Yrd Mat Sub Rec Scr Fac Was Fac Hostile Shots Fired 361 | . 70 58 10 . 117 . 106 Missed 122 | . 17 24 4 . 50 . 27 Hits 239 | . 53 34 6 . 67 . 79 Projectile 239 | . 53 34 6 . 67 . 79 Critical Strikes 2 | . . . . . 1 . 1 Part Disruptions 2 | . . . . . 2 . . Damage Taken 3036 | . 625 309 96 . 1001 . 1005 Core 796 | . 98 27 30 . 504 . 137 Absorbed by Shields . | . . . . . . . . Redirected to Shielding 12 | . 9 3 . . . . . Regen/Repaired (Parts) 38 | . 38 . . . . . . Core Remaining (%) 69 | 100 . . . 38 . . . Volleys Fired 102 | . 64 13 8 . . . 17 Largest 2 | . 2 2 2 . . . 1 Hottest 100 | . 100 100 86 . . . 75 Shots Fired 174 | . 122 23 12 . . . 17 Gun 116 | . 100 4 12 . . . . Cannon 32 | . 16 . . . . . 16 Launcher 24 | . 5 18 . . . . 1 Special 2 | . 1 1 . . . . . Kinetic 102 | . 90 4 8 . . . . Thermal 8 | . 3 1 4 . . . . Explosive 24 | . 5 18 . . . . 1 Electromagnetic 40 | . 24 . . . . . 16 Robot Hit Streak 10 | . 6 8 9 . . . 10 Robot Miss Streak 4 | . 4 1 1 . . . 2 Penetration Max . | . . . . . . . . Secondary Targets . | . . . . . . . . Shots Hit Robots 143 | . 74 7 9 . 20 . 33 Core Hits 101 | . 40 14 6 . 9 . 32 Critical Kills 1 | . . . 1 . . . . Critical Parts Destroyed 1 | . 1 . . . . . . Critical Strikes 9 | . 1 . 2 . 2 . 4 Burn 1 | . . . 1 . . . . Destroy 2 | . 1 . 1 . . . . Sever 4 | . . . . . . . 4 Impale 2 | . . . . . 2 . . Melee Attacks 91 | . . . . . 51 . 40 Impact 3 | . . . . . 3 . . Slashing 40 | . . . . . . . 40 Piercing 48 | . . . . . 48 . . Sneak Attacks 12 | . . . . . 7 . 5 Combat Hostiles . | . . . . . . . . Follow-up Attacks . | . . . . . . . . Damage Inflicted 5994 | . 1403 591 196 . 1187 . 2617 Guns 1064 | . 813 55 196 . . . . Cannons 620 | . 193 . . . . . 427 Explosions 1831 | . 397 536 . . . . 898 Melee 2476 | . . . . . 1187 . 1289 Ramming 3 | . . . . . . . 3 Kinetic 960 | . 753 55 152 . . . . Thermal 127 | . 83 . 44 . . . . Explosive 1525 | . 325 536 . . . . 664 Electromagnetic 903 | . 242 . . . . . 661 Impact 209 | . . . . . 209 . . Slashing 1289 | . . . . . . . 1289 Piercing 978 | . . . . . 978 . . Highest Corruption 7 | . 2 2 2 . 3 3 7 Average Corruption 2 | . 2 2 2 . 1 3 5 Corruption Purged . | . . . . . . . . Corruption Blocked . | . . . . . . . . Effects 105 | . 12 25 38 . 1 7 22 Message Errors 29 | . 3 8 14 . . 2 2 Matter Fused 23 | . 3 3 10 . . 2 5 Heat Flow Errors 14 | . 2 2 6 . . 1 3 Energy Discharges 13 | . 1 3 2 . 1 1 5 Parts Rejected 2 | . 1 . . . . . 1 Parts Fused 1 | . . . 1 . . . . Data Loss (minor) 7 | . 2 1 3 . . . 1 Data Loss (major) 6 | . . 1 2 . . 1 2 Misfires 5 | . . 5 . . . . . Alerts 5 | . . 2 . . . . 3 Overload Shots . | . . . . . . . . Overflow Damage 613 | . 17 21 . . 206 . 369 Projectiles . | . . . . . . . . Explosions 100 | . 17 21 . . . . 62 Melee 513 | . . . . . 206 . 307 Knockbacks 4 | . 4 . . . . . . Impact . | . . . . . . . . Kinetic 4 | . 4 . . . . . . Secondary . | . . . . . . . . Self-Inflicted Damage 244 | . 72 113 . . . . 59 Shots 11 | . 3 7 . . . . 1 Rammed 1 | . . . . . . . 1 Targets Rammed 1 | . . . . . . . 1 Kicked . | . . . . . . . . Crushed . | . . . . . . . . Highest Temperature 253 | . 253 160 248 . 233 144 190 Average Temperature 65 | . 37 75 86 . 96 80 53 Received Heat Transfer 786 | . 225 90 18 . 90 . 363 Effects 1 | . . . 1 . . . . Interference 1 | . . . 1 . . . . Siege Activations . | . . . . . . . . Martial Activations . | . . . . . . . . Shielding Activations . | . . . . . . . . Robots Disrupted 1 | . . . . . . . 1 Combat Hostiles . | . . . . . . . . Robots Corrupted 1 | . . . . . . . 1 Combat Hostiles . | . . . . . . . . Parts Fried 2 | . . . . . . . 2 Impact Corruptions . | . . . . . . . . Robots Melted . | . . . . . . . . Combat Hostiles . | . . . . . . . . Parts Melted . | . . . . . . . . Heat Transferred 310 | . 125 . 185 . . . . Parts Sabotaged . | . . . . . . . . Parts Stolen . | . . . . . . . . Parts Stripped . | . . . . . . . . Power Chain Reactions 1 | . 1 . . . . . . Alert | -11 -10 -10 -9 -9 -6 -6 -6 ------- Run | Yrd Mat Sub Rec Scr Fac Was Fac Maximum Alert Level 3 | . 1 . . . 2 . 3 Low Security (%) 69 | 100 63 . 100 . 33 100 22 Level 1 18 | . 36 . . . 49 . 11 Level 2 8 | . . . . . 16 . 38 Level 3 3 | . . . . . . . 27 Level 4 . | . . . . . . . . Level 5 . | . . . . . . . . High Security . | . . . . . . . . Max Security . | . . . . . . . . Peak Influence 749 | . 283 . 39 . 492 180 749 Initial 165 | . . . 39 . . 165 3 Average 150 | . 128 . 4 . 253 90 504 Influence Increases 3393 | . 741 95 140 . 1104 50 1263 Destroy 0b10 Robot/C 960 | . 440 20 60 . 60 . 380 Destroy 0b10 Robot/NC 205 | . 25 . 15 . 40 . 125 Destroy Leader 244 | . 96 . . . 28 . 120 Allied During Kill 298 | . . . . . . . 298 Successful Hack 71 | . 6 . 35 . 30 . . Select Force Hacks 90 | . 60 . 30 . . . . Disable Machine 195 | . 45 . . . . . 150 Destroy Structure 185 | . 24 . . . 26 35 100 Partial Spotted 165 | . . . . . 150 15 . Lose Combat Pursuer 480 | . 45 75 . . 270 . 90 Active Sensor Use 500 | . . . . . 500 . . Influence Decreases 2667 | . 534 219 223 . 632 517 542 Entered New Map 453 | . . 100 44 . . 307 2 Time Decay 1724 | . 504 99 179 . 392 170 380 Search Patrol Dispatched 150 | . . . . . 150 . . Lost Part 160 | . 30 20 . . 90 . 20 Lost Ally 180 | . . . . . . 40 140 Squads Dispatched 29 | . 5 . . . 15 . 9 Investigation 15 | . 4 . . . 10 . 1 Extermination 4 | . . . . . 3 . 1 Reinforcement 9 | . 1 . . . 2 . 6 Assault 1 | . . . . . . . 1 Garrison . | . . . . . . . . Intercept . | . . . . . . . . Searches Triggered 1 | . . . . . 1 . . Construction Impeded 1 | . . . . . . . 1 Haulers Reinforced 3 | . . . . . 1 . 2 Active Scanning Responses 5 | . . . . . 5 . . Cargo Convoy Interrupts 1 | . . . . . 1 . . Stealth | -11 -10 -10 -9 -9 -6 -6 -6 --------- Run | Yrd Mat Sub Rec Scr Fac Was Fac Distress Signals 11 | . 7 . . . 1 . 3 Communications Jammed . | . . . . . . . . Distress Signals . | . . . . . . . . Times Spotted 126 | . 31 10 2 . 52 6 25 Peak Tracking Total 22 | . 5 2 1 . 22 6 4 Tactical Retreats 14 | . 3 2 . . 6 . 3 Traps | -11 -10 -10 -9 -9 -6 -6 -6 ------- Run | Yrd Mat Sub Rec Scr Fac Was Fac Traps Triggered 4 | . 1 . . . 2 . 1 Indirectly 1 | . . . . . . . 1 Trap Hack Attempts . | . . . . . . . . Triggered . | . . . . . . . . Disarmed . | . . . . . . . . Reprogrammed . | . . . . . . . . Reused . | . . . . . . . . Traps Extracted . | . . . . . . . . Installed . | . . . . . . . . Triggered . | . . . . . . . . Machines | -11 -10 -10 -9 -9 -6 -6 -6 ---------- Run | Yrd Mat Sub Rec Scr Fac Was Fac Machines Disabled 15 | . 3 2 . . . . 10 Max in Single Turn 2 | . 2 2 . . . . 2 Garrison Access 1 | . . . . . 1 . . Machines Repaired . | . . . . . . . . Machines Dismantled . | . . . . . . . . Machines Sabotaged . | . . . . . . . . Overloaded Fab Kills . | . . . . . . . . Hacking | -11 -10 -10 -9 -9 -6 -6 -6 --------- Run | Yrd Mat Sub Rec Scr Fac Was Fac Machines Accessed 37 | . 8 3 9 4 11 . 2 Terminals 14 | . 5 . 6 . 2 . 1 Fabricators 3 | . . . . . 2 . 1 Repair Stations 2 | . 1 . . . 1 . . Recycling Units 6 | . 2 . 3 . 1 . . Scanalyzers 3 | . . . . . 3 . . Garrison Access 2 | . . . . . 2 . . Total Hacks 107 | . 28 8 15 26 22 . 8 Successful 70 | . 14 8 10 26 8 . 4 Failed 37 | . 14 . 5 . 14 . 4 Catastrophic 5 | . 1 . . . 3 . 1 Database Lockouts . | . . . . . . . . Manual 30 | . 11 . 11 . 4 . 4 Terminals 34 | . 18 . 9 . 3 . 4 Fabricators 7 | . . . . . 3 . 4 Repair Stations 6 | . 3 . . . 3 . . Recycling Units 16 | . 7 . 6 . 3 . . Scanalyzers 6 | . . . . . 6 . . Garrison Access 4 | . . . . . 4 . . Terminal Hacks 42 | . 7 8 1 26 . . . Record 33 | . 1 6 . 26 . . . Part Schematic 2 | . 1 . 1 . . . . Open Door 1 | . . 1 . . . . . Emergency Access Points 1 | . 1 . . . . . . Locate Traps 3 | . 3 . . . . . . Hauler Manifests 1 | . 1 . . . . . . Release Object 1 | . . 1 . . . . . Fabricator Hacks 5 | . . . . . 2 . 3 Network Status 3 | . . . . . 2 . 1 Load Schematic 1 | . . . . . . . 1 Build 1 | . . . . . . . 1 Repair Station Hacks 2 | . 2 . . . . . . Scan Component 1 | . 1 . . . . . . Repair 1 | . 1 . . . . . . Recycling Unit Hacks 6 | . 3 . 2 . 1 . . Report Inventory 5 | . 2 . 2 . 1 . . Retrieve Components 1 | . 1 . . . . . . Scanalyzer 1 | . . . . . 1 . . Insert Component 1 | . . . . . 1 . . Garrison Access Hacks 1 | . . . . . 1 . . Seal Access 1 | . . . . . 1 . . Unauthorized Hacks 13 | . 2 . 7 . 3 . 1 Terminals 8 | . . . 5 . 2 . 1 Operators 2 | . . . . . 1 . 1 Skim 6 | . . . 5 . 1 . . Fabricators . | . . . . . . . . Repair Stations . | . . . . . . . . Recycling Units 5 | . 2 . 2 . 1 . . Mask 1 | . . . 1 . . . . Tunnel 3 | . 2 . 1 . . . . Fedlink 1 | . . . . . 1 . . Scanalyzers . | . . . . . . . . Garrison Access . | . . . . . . . . Data Cores Recovered 2 | . . . . . 1 . 1 Used 1 | . . . . . . . 1 Hacking Detections 22 | . 7 . 5 . 8 . 2 Full Trace Events 8 | . 1 . 2 . 4 . 1 Feedback Events . | . . . . . . . . Feedback Blocked . | . . . . . . . . Robot Schematics Acquired . | . . . . . . . . Robots Built . | . . . . . . . . Authchips . | . . . . . . . . Time . | . . . . . . . . Total Robot Build Rating . | . . . . . . . . Part Schematics Acquired 2 | . 1 . 1 . . . . Parts Built 2 | . . . . . . . 2 Authchips . | . . . . . . . . Time 84 | . . . . . . . 84 Total Part Build Rating 8 | . . . . . . . 8 Parts Repaired 1 | . 1 . . . . . . Time 26 | . 26 . . . . . . Parts Recycled . | . . . . . . . . Recycled Matter . | . . . . . . . . Retrieved Matter . | . . . . . . . . Retrieved Components 2 | . 2 . . . . . . Parts Scanalyzed 1 | . . . . . 1 . . Part Schematics Acquired . | . . . . . . . . Parts Damaged . | . . . . . . . . Bothacking | -11 -10 -10 -9 -9 -6 -6 -6 ------------ Run | Yrd Mat Sub Rec Scr Fac Was Fac Used RIF Installer . | . . . . . . . . Robots Hacked . | . . . . . . . . Non-combat . | . . . . . . . . Combat . | . . . . . . . . Robot Hacks Applied . | . . . . . . . . Relay Couplers Released . | . . . . . . . . Fabnet Peak Effective % . | . . . . . . . . Robots Rewired . | . . . . . . . . Allies Hacked . | . . . . . . . . Hacks Repelled . | . . . . . . . . Allies | -11 -10 -10 -9 -9 -6 -6 -6 -------- Run | Yrd Mat Sub Rec Scr Fac Was Fac Total Allies 19 | . . . . . . 19 . Largest Group 18 | . . . . . . 18 10 Highest-Rated Group 656 | . . . . . . 656 452 Highest-Rated Ally 50 | . . . . . . 50 50 Total Orders 1 | . . . . . . . 1 EXPLORE 1 | . . . . . . . 1 Ally Attacks 187 | . . . . . . 100 87 Total Damage 7800 | . . . . . . 4780 3020 Kills 38 | . . . . . . 12 26 Allies Corrupted . | . . . . . . . . Allies Melted . | . . . . . . . . Intel | -11 -10 -10 -9 -9 -6 -6 -6 ------- Run | Yrd Mat Sub Rec Scr Fac Was Fac Active Infowar (turns) 1133 | . . 2 . . 1129 2 . Optics 4 | . . 2 . . . 2 . A.S.S. 1065 | . . . . . 1065 . . Structural 700 | . . . . . 700 . . T.N.C. 361 | . . . . . 361 . . Robot Analysis Total . | . . . . . . . . Derelict Logs Recovered 4 | . . 1 . 3 . . . Drone Launches 2 | . . . . . . . 2 Drone Recoveries 2 | . . . . . . . 2 Exploration | -11 -10 -10 -9 -9 -6 -6 -6 ------------- Run | Yrd Mat Sub Rec Scr Fac Was Fac Turns Passed 12389 | 88 1514 1717 2537 4132 1136 351 914 Spaces Moved 8157 | 61 742 839 1135 2282 2309 385 404 Core 363 | 13 . . . . 7 343 . Treads 2417 | 38 742 836 355 . . 42 404 Legs . | . . . . . . . . Wheels 3075 | 10 . 3 780 2282 . . . Hover . | . . . . . . . . Flight 2302 | . . . . . 2302 . . Fastest Speed 23 | 50 160 120 150 135 23 50 160 Average Speed 134 | 123 160 190 218 177 26 87 160 Slowest Speed 340 | 160 160 260 340 195 300 160 160 Overloaded Moves . | . . . . . . . . Propulsion Burnouts . | . . . . . . . . Robots Hopped 10 | . . . . . 10 . . Potential Cave-ins . | . . . . . . . . Cave-ins Triggered . | . . . . . . . . Exploration Rate (%) 63 | 6 99 50 99 92 46 96 16 Regions Visited 7 Branch Regions 3 Pre-discovered Areas 6 | . 2 2 2 . . . . Known Exits Taken 1 | . . . 1 . . . . Unknown Exits Taken 4 | 1 1 1 . 1 . . . Scrap Searched 6 | . . . . 6 . . . Spaces Dug 49 | . 8 7 . . 26 . 8 Terrain Destroyed 133 | . 21 73 . . 26 . 13 Melee 34 | . . . . . 26 . 8 Projectile . | . . . . . . . . AOE 99 | . 21 73 . . . . 5 Terrain Rammed . | . . . . . . . . Walls Destroyed . | . . . . . . . . Machines Disabled . | . . . . . . . . Actions | -11 -10 -10 -9 -9 -6 -6 -6 --------- Run | Yrd Mat Sub Rec Scr Fac Was Fac Total 9213 | 71 942 948 1179 2373 2729 397 574 Wait 512 | . 97 41 6 . 280 2 86 Move 8132 | 60 741 838 1134 2281 2290 384 404 Hop 9 | . . . . . 9 . . Pick Up 120 | 3 18 8 19 50 14 1 7 Fast Attach 47 | 7 2 6 2 5 14 6 5 Attach 25 | . 4 4 . 1 11 1 4 Detach 11 | 1 . . . 1 3 1 5 Swap 36 | . 12 9 4 2 8 . 1 Drop 109 | . 4 29 6 33 32 2 3 Fire 102 | . 64 13 8 . . . 17 Melee 91 | . . . . . 51 . 40 Ram . | . . . . . . . . Kick . | . . . . . . . . Crush 1 | . . . . . . . 1 Escape Stasis 17 | . . . . . 17 . . Rewire 1 | . . . . . . . 1 Trap . | . . . . . . . . Miscellaneous . | . . . . . . . . Route ------- -11/Scrapyard -10/Materials (discovered 5 exits: [*Mat x3] / [*Min] / *Sub) -10/Subcaves (discovered 2 exits: [*Mat] / *Rec) -9/Recycling (discovered 2 exits: [*Fac] / *Scr) -9/Scraptown (discovered 2 exits: *Fac x2) -6/Factory (discovered 2 exits: *Fac / *Low) -6/Waste -6/Factory History --------- Turn | Location | Event 7 | -11/Scrapyard | Discovered new exit (range 16) 89 | -11/Scrapyard | Entered Materials 313 | -10/Materials | Build established: Mutant 320 | -10/Materials | Discovered new exit (range 8) 367 | -10/Materials | Repaired Grenade Launcher 902 | -10/Materials | Discovered new exit (range 16) 987 | -10/Materials | Discovered new exit (range 5) 1269 | -10/Materials | Discovered new exit (range 8) 1336 | -10/Materials | Discovered new exit (range 10) 1603 | -10/Materials | Entered Subcaves 1604 | -10/Subcaves | A swath of the cavern ceiling suddenly collapsed 1974 | -10/Subcaves | Visited Clippyterm 1979 | -10/Subcaves | Learned location of Extension (-4) 1979 | -10/Subcaves | Learned Research machine intel 2009 | -10/Subcaves | Discovered new exit (range 12) 2397 | -10/Subcaves | Shifting Twisted Machinery released Riot Gun 2397 | -10/Subcaves | Shifting Twisted Machinery released Mak. Light Armor Plating 2562 | -10/Subcaves | Found SUBCON Basin 2915 | -10/Subcaves | Ambushed by Subdwellers from Twisted Machinery 3233 | -10/Subcaves | Discovered new exit (range 14) 3320 | -10/Subcaves | Entered Recycling 4227 | -9/Recycling | Discovered new exit (range 16) 4469 | -9/Recycling | Core integrity fell below 50% 4765 | -9/Recycling | Build established: Scavenger-Mutant 4836 | -9/Recycling | Learned location of 1 exit from Storage 4883 | -9/Recycling | Learned Storage stockpile data 4966 | -9/Recycling | Identified exit to Scraptown 4990 | -9/Recycling | Learned Storage trap positions 5015 | -9/Recycling | Learned Materials trap positions 5131 | -9/Recycling | Scanned before Scraplab entrance 5159 | -9/Recycling | Entered Scraplab 5335 | -9/Recycling | Build established: Mutant 5664 | -9/Recycling | Build established: Scavenger-Mutant 5857 | -9/Recycling | Entered Scraptown 5857 | -9/Scraptown | System corruption cleaned by C-Scrubber 6179 | -9/Scraptown | Visited Shadow of the Wyrm 6224 | -9/Scraptown | Visited Awakened 6729 | -9/Scraptown | Scanned Subdweller tech in exchange for log data 6737 | -9/Scraptown | Learned Research stockpile data 6739 | -9/Scraptown | Learned 12 Research zone layouts 6768 | -9/Scraptown | Discovered new exit (range 13) 6822 | -9/Scraptown | Build established: Mutant 6881 | -9/Scraptown | Visited Observation Area 6912 | -9/Scraptown | Visited SPCMW 6971 | -9/Scraptown | Visited Fellowship of the Rings 7031 | -9/Scraptown | Visited Cyclists 7059 | -9/Scraptown | Visited UFD Registry 7059 | -9/Scraptown | Registered with UFD as "Protondrive" 7098 | -9/Scraptown | Entered Cyclist Reading Room 7142 | -9/Scraptown | Visited CPS Storage 7248 | -9/Scraptown | Visited Curators Association 7339 | -9/Scraptown | Visited Chapter 10 7630 | -9/Scraptown | Visited Supply Room 7681 | -9/Scraptown | Visited DA-N13 Charitable Foundation 7688 | -9/Scraptown | Found DCF Scrap (31 items) 7741 | -9/Scraptown | Visited Abandonware Association 7764 | -9/Scraptown | Learned abandonware demo "REPAIR.EXE" 7815 | -9/Scraptown | Visited Derelict Rescue Squad 7850 | -9/Scraptown | Visited Infowarlord's Domain 7883 | -9/Scraptown | Visited A0-MCA Data Center 7918 | -9/Scraptown | Visited Junk Repository 8210 | -9/Scraptown | Found Active Sensor Suite 9911 | -9/Scraptown | Given a C rating by A0-MCA 9979 | -9/Scraptown | Discovered new exit (range 5) 9989 | -9/Scraptown | Entered Factory 9989 | -6/Factory | Evolved 8 slots: Power x1, Propulsion x3, Utility x4 10235 | -6/Factory | Found Prototype Processor 10235 | -6/Factory | Identified Exp. Targeting Computer 10355 | -6/Factory | Discovered new exit (range 5) 10356 | -6/Factory | Identified exit to Factory 10615 | -6/Factory | Discovered new exit (range 11) 10617 | -6/Factory | Identified exit to Lower Caves 10689 | -6/Factory | Search patrols dispatched 10691 | -6/Factory | Loaded intel: 8 recycling unit locations 10706 | -6/Factory | Build established: Scout 11015 | -6/Factory | Cargo convoy interrupted 11044 | -6/Factory | Spotted B-75 Beast 11077 | -6/Factory | Lost 5 parts (1p2n1u1w) 11111 | -6/Factory | Core integrity fell below 50% 11125 | -6/Factory | Sucked down chute 11125 | -6/Factory | Entered Waste 11126 | -6/Waste | Met a frightened Derelict 11136 | -6/Waste | Spotted C-40 Crusher 11137 | -6/Waste | Spotted C-40 Crusher 11138 | -6/Waste | Spotted C-40 Crusher 11156 | -6/Waste | Lost 4 parts (3n1u) 11175 | -6/Waste | Spotted C-40 Crusher 11176 | -6/Waste | Spotted C-40 Crusher 11181 | -6/Waste | Spotted C-40 Crusher 11191 | -6/Waste | Warlord forces began an assault 11198 | -6/Waste | Allies destroyed C-40 Crusher 11199 | -6/Waste | Found Prototype Hackware 11201 | -6/Waste | Allies destroyed C-40 Crusher 11208 | -6/Waste | Discovered new exit (range 16) 11226 | -6/Waste | Allies destroyed C-40 Crusher 11360 | -6/Waste | Build established: Mutant 11476 | -6/Waste | Entered Factory 11476 | -6/Factory | Accompanied by 10 allies 11546 | -6/Factory | Lost 3 allies 11796 | -6/Factory | Build established: Hacker-Mutant 11882 | -6/Factory | Lost 7 allies 11970 | -6/Factory | Fabricated Greatsword (x2) 12176 | -6/Factory | First assault squad dispatched 12386 | -6/Factory | Identified Exp. Hacking Suite 12390 | -6/Factory | Self-destructed Last Messages --------------- 12287_ U-05 Engineer destroyed. 12290_ Sneak attack on U-05 Engineer. 12290_ U-05 Engineer destroyed. 12293_ Sneak attack on U-05 Engineer. 12293_ Destroyed Wheel. 12293_ Destroyed Lgt. Ion Engine. 12301_ U-05 Engineer builds a Wall. 12309_ Y-54 Guardian Lgt. Treads severed. 12311_ System corrupted: Matter fused (-9). 12312_ Y-54 Guardian destroyed. 12313_ Acquired 9 matter. 12327_ R-10 Processor collects Flak Gun. 12331_ R-10 Processor collects Lgt. Treads. 12332_ R-10 Processor collects Imp. Light Armor Plating. 12335_ R-10 Processor collects Imp. Deuterium Engine. 12344_ KQKRIA:# O>I#DQ>YYT9 4YNLTJO7VWZT= 12373_ System corrupted: Substantial component data lost. 12386_ Identified Exp. Hacking Suite. 12388_ Dropped Hrd. Light Armor Plating. 12389_ Dropped Greatsword. Map ----- +----------------------------------------------------+ | ?????????????????????????????????????????????? | | ??????????????????????????????????????????????? | | ###??????????????????????????????????????????????? | | ?????????????????????????????????????????????????? | | ?????????????????????????????????????????????????? | | ?????????????????????????????????????????????????? | | ?????????????????????????????????????????????????? | | ?????????????????????????????????????????????????? | | ????????????????????????o????????????????????????? | | ?????????????????????????????????????????????????? | | ?????????????????????????????????????????????????? | | ?????????????????????????????????????????????????? | | ?????????????????????????????????????????????????? | | ?????????????????????????????????????????????????? | | ?????????????????????????????????????????????????? | | ?????????????????????????????????????????????????? | | ?????????????????????????????????????????????????? | | ????###??????????????????????????????????????????? | | ########?????????????????????????????????????????? | | ##???####+#????????????????????????????????? | | ! ! ##??? ??????????????????????????????? | | #??#?= #?????????????????????????????? | | #??# #?????????????????????????????? | | !!! !#??# """ """ #?????????????????????????????? | | !!!==#??# """ """ ###+##########????????????????? | | !!*!!#??# """ """ # @/ #????????????????? | | |*%!##??? # #????????????????? | | #/######????? ?# #????????????????? | | ##########/#### """ """ #????????????????? | | %% # """ """ #????????????????? | | ! # """ """ #????????????????? | | + #????????????????? | | # """ """ #????????????????? | | # """ """ #????????????????? | | ##########+##+# """ """ #????????????????? | | #### # #????????????????? | | #????""""""""" # #????????????????? | | #??# ##############????????????????? | | #????""""""""" ##????????????????????????????? | | ?#????? #?????????????????????????????? | | ????????###########?????????????????????????????? | | ????????????????????????????????????????????????? | | ?????????????????????????????????????????????????? | | ?????????????????????????????????????????????????? | | ?????????????????????????????????????????????????? | | ?????????????????????????????????????????????????? | | ?????????????????????????????????????????????????? | | ?????????????????????????????????????????????????? | | ?????????????????????????????????????????????????? | | ?????????????????????????????????????????????????? | +----------------------------------------------------+ Best States ------------- Heat Dissipation 37 Energy Generation 37 Energy Capacity 300 Matter Stores 300 Matter Capacity 300 Sight Range 21 Robot Scan Range 20 Terrain Scan Density 10 Additional Mass Support 6 Armor Coverage 150 Core Shielding 20 Evasion (%) 65 Recoil Reduction 2 Offensive Hacking 16 Defensive Hacking 20 Authchip Count 4 Item Schematics ----------------- Seismic Detector | -10/Materials | Hacked Greatsword | -9/Recycling | Hacked Robot Schematics ------------------ None Fabricated ------------ Greatsword | x2 | -6/Factory Repaired ---------- Grenade Launcher | 36% | -10/Materials Alien Tech Used ----------------- None Achievements -------------- None Challenges ------------ None Game ------ Seed DerelictReflexCyclogen Manual? 0 Play Time 01:27:28 Cumulative 480.6 hours Start 2025.06.19 @ 13:21:39 End 2025.06.19 @ 15:28:50 Sessions 5 Manual Loads 0 Difficulty Rogue Special Mode None Game No. 391 Rogue 383 Adventurer 0 Explorer 8 Win Type - Total 8 Types 6/0/2/0/0/0/0/0/0/0 Lore% 80 Gallery% 76 Achievement% 71 Wizard Run 0 Options --------- Layout 0 ASCII 0 Keyboard 1 Movement Vi Keybinds 0 Fullscreen 1 Font 18/SmallcapsGlow Map View 76x50 Zoom Use 0% Tactical HUD 1 Map Filters NONE Filters NONE Steam 1 RUN: 3a042a13-a119-471a-817e-9764064dc23c